[Event "Late-Titled-Tuesday-Blitz-June-04-2024"]
[Site "Chess.com"]
[Date "2024.06.04"]
[Round "1"]
[White "maurovargas01"]
[Black "Crasyhealer"]
[Result "0-1"]
[WhiteElo "1915"]
[BlackElo "2527"]
[TimeControl "180+1"]
[EndTime "14:01:20 PDT"]
[Termination "Crasyhealer won by resignation"]

1. e4 {[%clk 0:02:50.7]} 1... e5 {[%clk 0:02:53.5]} 2. Nf3 {[%clk 0:02:49.7]}
2... Nc6 {[%clk 0:02:53.2]} 3. d4 {[%clk 0:02:47]} 3... exd4 {[%clk 0:02:54.1]}
4. Bc4 {[%clk 0:02:46.6]} 4... Nf6 {[%clk 0:02:47.8]} 5. e5 {[%clk 0:02:45.7]}
5... d5 {[%clk 0:02:48]} 6. Bb5 {[%clk 0:02:39.4]} 6... Nd7 {[%clk 0:02:47.2]}
7. Bxc6 {[%clk 0:02:37.8]} 7... bxc6 {[%clk 0:02:46]} 8. O-O {[%clk 0:02:37.4]}
8... c5 {[%clk 0:02:38.2]} 9. Qxd4 {[%clk 0:02:38.3]} 9... cxd4 {[%clk
0:02:38.6]} 10. Nxd4 {[%clk 0:02:37.5]} 10... Bc5 {[%clk 0:02:37.4]} 0-1

[Event "Late-Titled-Tuesday-Blitz-June-04-2024"]
[Site "Chess.com"]
[Date "2024.06.04"]
[Round "1"]
[White "charly871"]
[Black "Faqade"]
[Result "0-1"]
[WhiteElo "2265"]
[BlackElo "2589"]
[TimeControl "180+1"]
[EndTime "14:02:04 PDT"]
[Termination "Faqade won by checkmate"]

1. c4 {[%clk 0:02:59.3]} 1... e6 {[%clk 0:02:58.2]} 2. g3 {[%clk 0:02:58.9]}
2... f5 {[%clk 0:02:58]} 3. Bg2 {[%clk 0:02:58.6]} 3... Nf6 {[%clk 0:02:58.3]}
4. d4 {[%clk 0:02:58.3]} 4... d5 {[%clk 0:02:57.3]} 5. cxd5 {[%clk 0:02:55.2]}
5... exd5 {[%clk 0:02:58.2]} 6. Nc3 {[%clk 0:02:54.9]} 6... c6 {[%clk
0:02:58.4]} 7. Nf3 {[%clk 0:02:54.5]} 7... Bd6 {[%clk 0:02:58.5]} 8. Bf4 {[%clk
0:02:53.2]} 8... O-O {[%clk 0:02:58.2]} 9. Ne5 {[%clk 0:02:52.9]} 9... Ne4
{[%clk 0:02:57.6]} 10. f3 {[%clk 0:02:49.7]} 10... Ng5 {[%clk 0:02:53.7]} 11. h4
{[%clk 0:02:48.4]} 11... Ne6 {[%clk 0:02:53.7]} 12. Be3 {[%clk 0:02:45.4]} 12...
f4 {[%clk 0:02:53.1]} 13. Bf2 {[%clk 0:02:39.8]} 13... Qb6 {[%clk 0:02:50.8]}
14. Rb1 {[%clk 0:02:23]} 14... fxg3 {[%clk 0:02:49.2]} 15. Be3 {[%clk 0:02:20]}
15... Bxe5 {[%clk 0:02:44.4]} 16. Na4 {[%clk 0:02:15.8]} 16... Qb4+ {[%clk
0:02:36.2]} 17. Bd2 {[%clk 0:02:14.3]} 17... Qxd4 {[%clk 0:02:35.9]} 18. Nc3
{[%clk 0:02:07.8]} 18... Qf2# {[%clk 0:02:35.2]} 0-1

[Event "Late-Titled-Tuesday-Blitz-June-04-2024"]
[Site "Chess.com"]
[Date "2024.06.04"]
[Round "1"]
[White "IMJonathanCarlstedt"]
[Black "JaackCamel"]
[Result "1-0"]
[WhiteElo "2565"]
[BlackElo "2225"]
[TimeControl "180+1"]
[EndTime "14:02:15 PDT"]
[Termination "IMJonathanCarlstedt won by resignation"]

1. c4 {[%clk 0:02:59.4]} 1... e6 {[%clk 0:02:59.3]} 2. g3 {[%clk 0:02:58.5]}
2... d5 {[%clk 0:02:59]} 3. Bg2 {[%clk 0:02:58.1]} 3... c6 {[%clk 0:02:59.2]} 4.
Nf3 {[%clk 0:02:57.7]} 4... dxc4 {[%clk 0:02:59.3]} 5. O-O {[%clk 0:02:57.6]}
5... b5 {[%clk 0:02:59]} 6. a4 {[%clk 0:02:55.2]} 6... Bb7 {[%clk 0:02:58.7]} 7.
b3 {[%clk 0:02:54.8]} 7... cxb3 {[%clk 0:02:57.7]} 8. Qxb3 {[%clk 0:02:55.2]}
8... b4 {[%clk 0:02:57.8]} 9. Ne5 {[%clk 0:02:49.6]} 9... Qc8 {[%clk 0:02:56.7]}
10. a5 {[%clk 0:02:45.3]} 10... c5 {[%clk 0:02:56.2]} 11. Qa4+ {[%clk
0:02:41.2]} 11... Nd7 {[%clk 0:02:02]} 12. Nxd7 {[%clk 0:02:38.8]} 12... Bxg2
{[%clk 0:02:00.8]} 13. Ne5+ {[%clk 0:02:37.3]} 1-0

[Event "Late-Titled-Tuesday-Blitz-June-04-2024"]
[Site "Chess.com"]
[Date "2024.06.04"]
[Round "1"]
[White "almaguerjm"]
[Black "ulises2013"]
[Result "0-1"]
[WhiteElo "2494"]
[BlackElo "2926"]
[TimeControl "180+1"]
[EndTime "14:02:45 PDT"]
[Termination "ulises2013 won by resignation"]

1. e4 {[%clk 0:02:59.8]} 1... g6 {[%clk 0:03:00.9]} 2. Bc4 {[%clk 0:02:54]} 2...
Bg7 {[%clk 0:03:01.1]} 3. Ne2 {[%clk 0:02:52.9]} 3... c5 {[%clk 0:03:01.1]} 4.
c3 {[%clk 0:02:52.3]} 4... e6 {[%clk 0:03:00.9]} 5. d4 {[%clk 0:02:47.1]} 5...
cxd4 {[%clk 0:03:00.7]} 6. cxd4 {[%clk 0:02:45.9]} 6... d5 {[%clk 0:02:58.6]} 7.
Bb5+ {[%clk 0:02:46]} 7... Bd7 {[%clk 0:02:58.5]} 8. Bxd7+ {[%clk 0:02:46]} 8...
Qxd7 {[%clk 0:02:59]} 9. e5 {[%clk 0:02:46.6]} 9... Ne7 {[%clk 0:02:58.2]} 10.
O-O {[%clk 0:02:40.5]} 10... O-O {[%clk 0:02:58.1]} 11. Nd2 {[%clk 0:02:39.3]}
11... Nbc6 {[%clk 0:02:57.5]} 12. Nf3 {[%clk 0:02:26.8]} 12... f6 {[%clk
0:02:53.2]} 13. exf6 {[%clk 0:02:25.5]} 13... Bxf6 {[%clk 0:02:54.1]} 14. Bh6
{[%clk 0:02:21.7]} 14... Rfe8 {[%clk 0:02:54.4]} 15. Re1 {[%clk 0:02:22.1]}
15... Nf5 {[%clk 0:02:54.4]} 16. Bf4 {[%clk 0:02:13.7]} 16... Qd8 {[%clk
0:02:54]} 17. h3 {[%clk 0:02:11.9]} 17... Qb6 {[%clk 0:02:53.8]} 18. Be5 {[%clk
0:02:05]} 18... Nxe5 {[%clk 0:02:53.2]} 19. dxe5 {[%clk 0:02:04.9]} 19... Bg7
{[%clk 0:02:46.7]} 20. Ned4 {[%clk 0:02:05.2]} 20... Nxd4 {[%clk 0:02:43.4]} 21.
Nxd4 {[%clk 0:02:02.4]} 21... Rac8 {[%clk 0:02:43.5]} 22. b3 {[%clk 0:01:59.6]}
22... Bf8 {[%clk 0:02:43.4]} 23. Qg4 {[%clk 0:01:58.3]} 23... Bc5 {[%clk
0:02:33.3]} 24. Rad1 {[%clk 0:01:58.2]} 24... Rc7 {[%clk 0:02:33.3]} 25. Nxe6
{[%clk 0:01:52.3]} 25... Qxe6 {[%clk 0:02:32.2]} 0-1

[Event "Late-Titled-Tuesday-Blitz-June-04-2024"]
[Site "Chess.com"]
[Date "2024.06.04"]
[Round "1"]
[White "jinxy2009"]
[Black "annasargsyan_m"]
[Result "0-1"]
[WhiteElo "2264"]
[BlackElo "2583"]
[TimeControl "180+1"]
[EndTime "14:03:12 PDT"]
[Termination "annasargsyan_m won by resignation"]

1. c4 {[%clk 0:02:59.8]} 1... c6 {[%clk 0:02:59.6]} 2. g3 {[%clk 0:02:59.1]}
2... d5 {[%clk 0:03:00.5]} 3. Bg2 {[%clk 0:02:59.2]} 3... Nf6 {[%clk 0:03:01]}
4. Nf3 {[%clk 0:02:59.5]} 4... Bf5 {[%clk 0:02:59.9]} 5. O-O {[%clk 0:02:57.1]}
5... e6 {[%clk 0:02:59.3]} 6. b3 {[%clk 0:02:56.5]} 6... Be7 {[%clk 0:02:56.7]}
7. Bb2 {[%clk 0:02:57]} 7... h6 {[%clk 0:02:56.6]} 8. d3 {[%clk 0:02:55.9]} 8...
O-O {[%clk 0:02:56.8]} 9. Nc3 {[%clk 0:02:51.8]} 9... Nbd7 {[%clk 0:02:56.9]}
10. Re1 {[%clk 0:02:51.3]} 10... Bg6 {[%clk 0:02:53.9]} 11. e4 {[%clk
0:02:50.8]} 11... dxe4 {[%clk 0:02:52]} 12. dxe4 {[%clk 0:02:51]} 12... Nc5
{[%clk 0:02:52.6]} 13. Qc2 {[%clk 0:02:29.6]} 13... Qd3 {[%clk 0:02:52.1]} 14.
Qxd3 {[%clk 0:02:18.8]} 14... Nxd3 {[%clk 0:02:53]} 15. Re2 {[%clk 0:02:18.7]}
15... Nxb2 {[%clk 0:02:52.3]} 16. Rxb2 {[%clk 0:02:19.1]} 16... Nxe4 {[%clk
0:02:52.5]} 17. Nxe4 {[%clk 0:02:16.1]} 17... Bxe4 {[%clk 0:02:53.4]} 18. Re1
{[%clk 0:02:15.6]} 18... Bf5 {[%clk 0:02:49.5]} 19. b4 {[%clk 0:02:06.5]} 19...
Bf6 {[%clk 0:02:42.9]} 20. Rb3 {[%clk 0:02:02.4]} 20... Bc2 {[%clk 0:02:39.3]}
21. Ra3 {[%clk 0:01:59.2]} 21... Rfd8 {[%clk 0:02:37.3]} 22. b5 {[%clk 0:01:55]}
22... Bd3 {[%clk 0:02:32.9]} 23. bxc6 {[%clk 0:01:46.7]} 23... bxc6 {[%clk
0:02:33.8]} 24. Nd2 {[%clk 0:01:39.5]} 24... Rac8 {[%clk 0:02:33.5]} 25. Rxa7
{[%clk 0:01:36.4]} 25... Bc3 {[%clk 0:02:33.3]} 26. Ra3 {[%clk 0:01:30.8]} 26...
Bxd2 {[%clk 0:02:30.9]} 27. Rd1 {[%clk 0:01:31.2]} 27... Bxc4 {[%clk 0:02:31.4]}
0-1

[Event "Late-Titled-Tuesday-Blitz-June-04-2024"]
[Site "Chess.com"]
[Date "2024.06.04"]
[Round "1"]
[White "xakevicius91"]
[Black "scabies1"]
[Result "1-0"]
[WhiteElo "2555"]
[BlackElo "2193"]
[TimeControl "180+1"]
[EndTime "14:03:24 PDT"]
[Termination "xakevicius91 won by resignation"]

1. e4 {[%clk 0:02:59.5]} 1... c5 {[%clk 0:02:57.5]} 2. Nf3 {[%clk 0:02:59.5]}
2... d6 {[%clk 0:02:55.8]} 3. Bc4 {[%clk 0:02:59.3]} 3... Nc6 {[%clk 0:02:53.7]}
4. O-O {[%clk 0:02:58.3]} 4... Nf6 {[%clk 0:02:51.7]} 5. Qe2 {[%clk 0:02:58.2]}
5... Bg4 {[%clk 0:02:51.1]} 6. c3 {[%clk 0:02:57.1]} 6... a6 {[%clk 0:02:47.2]}
7. h3 {[%clk 0:02:50.2]} 7... Bxf3 {[%clk 0:02:44.9]} 8. Qxf3 {[%clk 0:02:51.1]}
8... Ne5 {[%clk 0:02:45.4]} 9. Qe2 {[%clk 0:02:51.6]} 9... Nxc4 {[%clk
0:02:45.6]} 10. Qxc4 {[%clk 0:02:52.5]} 10... e6 {[%clk 0:02:41.7]} 11. d4
{[%clk 0:02:46.6]} 11... Nxe4 {[%clk 0:02:34.1]} 12. d5 {[%clk 0:02:38.7]} 12...
exd5 {[%clk 0:01:41.7]} 13. Qxd5 {[%clk 0:02:36.6]} 13... Nf6 {[%clk 0:01:39.4]}
14. Qxb7 {[%clk 0:02:34.3]} 14... Be7 {[%clk 0:01:39.9]} 15. Re1 {[%clk
0:02:34.2]} 15... Kf8 {[%clk 0:01:20.4]} 16. Rxe7 {[%clk 0:02:24.9]} 1-0

[Event "Late-Titled-Tuesday-Blitz-June-04-2024"]
[Site "Chess.com"]
[Date "2024.06.04"]
[Round "1"]
[White "whiteglovethief"]
[Black "protectiago"]
[Result "1-0"]
[WhiteElo "2541"]
[BlackElo "2121"]
[TimeControl "180+1"]
[EndTime "14:03:43 PDT"]
[Termination "whiteglovethief won by resignation"]

1. d4 {[%clk 0:01:56]} 1... d5 {[%clk 0:02:57.3]} 2. c4 {[%clk 0:01:56.3]} 2...
dxc4 {[%clk 0:02:55.8]} 3. e4 {[%clk 0:01:54.7]} 3... e6 {[%clk 0:02:53.1]} 4.
Bxc4 {[%clk 0:01:53.3]} 4... a6 {[%clk 0:02:49.7]} 5. Nf3 {[%clk 0:01:53.3]}
5... c5 {[%clk 0:02:49.5]} 6. a4 {[%clk 0:01:48.1]} 6... Nf6 {[%clk 0:02:37.6]}
7. Nc3 {[%clk 0:01:46.9]} 7... Nc6 {[%clk 0:02:36.4]} 8. d5 {[%clk 0:01:44.6]}
8... exd5 {[%clk 0:02:35.9]} 9. exd5 {[%clk 0:01:45.5]} 9... Na5 {[%clk
0:02:33.8]} 10. Qe2+ {[%clk 0:01:39.1]} 10... Qe7 {[%clk 0:02:32.3]} 11. Be3
{[%clk 0:01:38.3]} 11... Nxc4 {[%clk 0:02:28.9]} 12. Qxc4 {[%clk 0:01:39.2]}
12... b6 {[%clk 0:02:22.9]} 13. O-O {[%clk 0:01:37.3]} 13... g6 {[%clk
0:02:04.5]} 14. Rfe1 {[%clk 0:01:36]} 14... Kd8 {[%clk 0:01:38.8]} 15. Bg5
{[%clk 0:01:29.8]} 1-0

[Event "Late-Titled-Tuesday-Blitz-June-04-2024"]
[Site "Chess.com"]
[Date "2024.06.04"]
[Round "1"]
[White "ArtemDyachuk"]
[Black "zenitushka"]
[Result "1-0"]
[WhiteElo "2670"]
[BlackElo "2356"]
[TimeControl "180+1"]
[EndTime "14:03:56 PDT"]
[Termination "ArtemDyachuk won by resignation"]

1. e4 {[%clk 0:02:37.7]} 1... e6 {[%clk 0:02:59.7]} 2. d4 {[%clk 0:02:37.2]}
2... d5 {[%clk 0:03:00.6]} 3. Nc3 {[%clk 0:02:36.8]} 3... Bb4 {[%clk 0:02:56.3]}
4. e5 {[%clk 0:02:35.8]} 4... c5 {[%clk 0:02:56.6]} 5. a3 {[%clk 0:02:35.5]}
5... Bxc3+ {[%clk 0:02:57.2]} 6. bxc3 {[%clk 0:02:36.4]} 6... Ne7 {[%clk
0:02:57.3]} 7. Qg4 {[%clk 0:02:28.4]} 7... Qc7 {[%clk 0:02:56.6]} 8. Qxg7 {[%clk
0:02:10.1]} 8... Rg8 {[%clk 0:02:56.4]} 9. Qxh7 {[%clk 0:02:09.9]} 9... cxd4
{[%clk 0:02:56.8]} 10. Qd3 {[%clk 0:02:02.3]} 10... dxc3 {[%clk 0:02:47.5]} 11.
Nf3 {[%clk 0:02:01.3]} 11... Nbc6 {[%clk 0:02:45.9]} 12. Bf4 {[%clk 0:01:54.7]}
12... Na5 {[%clk 0:02:14.8]} 13. h4 {[%clk 0:01:47.8]} 13... Bd7 {[%clk
0:02:11.7]} 14. h5 {[%clk 0:01:44.5]} 14... a6 {[%clk 0:02:05.7]} 15. h6 {[%clk
0:01:37.8]} 15... Bb5 {[%clk 0:02:03.8]} 16. Qh7 {[%clk 0:01:25.8]} 16... Bxf1
{[%clk 0:01:57.6]} 17. Kxf1 {[%clk 0:01:09.4]} 17... Ng6 {[%clk 0:01:57]} 18.
Qxg8+ {[%clk 0:01:08.5]} 1-0

[Event "Late-Titled-Tuesday-Blitz-June-04-2024"]
[Site "Chess.com"]
[Date "2024.06.04"]
[Round "1"]
[White "Chigorinetz"]
[Black "Aygehovit1992"]
[Result "1-0"]
[WhiteElo "2552"]
[BlackElo "2799"]
[TimeControl "180+1"]
[EndTime "14:03:57 PDT"]
[Termination "Chigorinetz won by resignation"]

1. e4 {[%clk 0:03:00.9]} 1... c5 {[%clk 0:02:59.8]} 2. Nc3 {[%clk 0:03:00.7]}
2... Nc6 {[%clk 0:02:59.3]} 3. Nge2 {[%clk 0:03:00.5]} 3... e5 {[%clk
0:02:56.8]} 4. Nd5 {[%clk 0:02:59.3]} 4... g6 {[%clk 0:02:56.8]} 5. Nec3 {[%clk
0:02:58.5]} 5... Bg7 {[%clk 0:02:57.1]} 6. Nb5 {[%clk 0:02:58.3]} 6... Rb8
{[%clk 0:02:42.9]} 7. Nbc7+ {[%clk 0:02:55.1]} 7... Kf8 {[%clk 0:02:41.6]} 8.
Bc4 {[%clk 0:02:52.4]} 8... Nge7 {[%clk 0:02:27.2]} 9. O-O {[%clk 0:02:50.9]}
9... Nxd5 {[%clk 0:02:20.3]} 10. Nxd5 {[%clk 0:02:44.5]} 10... b5 {[%clk
0:02:19.2]} 11. Be2 {[%clk 0:02:44.6]} 11... d6 {[%clk 0:02:12]} 12. a4 {[%clk
0:02:44.4]} 12... a6 {[%clk 0:02:07.1]} 13. axb5 {[%clk 0:02:43.8]} 13... axb5
{[%clk 0:02:08]} 14. c3 {[%clk 0:02:42.7]} 14... h5 {[%clk 0:02:04.7]} 15. f4
{[%clk 0:02:42.5]} 15... exf4 {[%clk 0:01:59.3]} 16. d4 {[%clk 0:02:42.6]} 16...
cxd4 {[%clk 0:01:58.3]} 17. Bxf4 {[%clk 0:02:41.8]} 17... dxc3 {[%clk
0:01:56.4]} 18. bxc3 {[%clk 0:02:38.1]} 18... Be5 {[%clk 0:01:54.2]} 19. Qd2
{[%clk 0:02:34.1]} 19... Kg7 {[%clk 0:01:16]} 20. Bg5 {[%clk 0:02:26.2]} 20...
Qd7 {[%clk 0:01:16.4]} 21. Rf2 {[%clk 0:02:08.8]} 21... Qb7 {[%clk 0:01:06.6]}
22. Raf1 {[%clk 0:02:07.6]} 22... Bf5 {[%clk 0:01:06.9]} 23. exf5 {[%clk
0:02:02.1]} 1-0

[Event "Late-Titled-Tuesday-Blitz-June-04-2024"]
[Site "Chess.com"]
[Date "2024.06.04"]
[Round "1"]
[White "only_strong_moves"]
[Black "Tol_Tol"]
[Result "1-0"]
[WhiteElo "2682"]
[BlackElo "2372"]
[TimeControl "180+1"]
[EndTime "14:04:06 PDT"]
[Termination "only_strong_moves won by resignation"]

1. Nc3 {[%clk 0:03:00.9]} 1... Nf6 {[%clk 0:02:56.9]} 2. e4 {[%clk 0:03:00.7]}
2... e5 {[%clk 0:02:49.8]} 3. f4 {[%clk 0:03:00.9]} 3... d5 {[%clk 0:02:46.3]}
4. fxe5 {[%clk 0:03:01.2]} 4... Nxe4 {[%clk 0:02:45.7]} 5. Qf3 {[%clk
0:03:01.8]} 5... Nxc3 {[%clk 0:01:30.4]} 6. bxc3 {[%clk 0:03:02.7]} 6... Be7
{[%clk 0:01:29.8]} 7. d4 {[%clk 0:03:02.4]} 7... O-O {[%clk 0:01:29.4]} 8. Bd3
{[%clk 0:03:02.9]} 8... f5 {[%clk 0:01:24.7]} 9. Ne2 {[%clk 0:03:01.4]} 9... c5
{[%clk 0:01:19.4]} 10. Nf4 {[%clk 0:02:58.6]} 10... Nc6 {[%clk 0:01:14.6]} 11.
Qxd5+ {[%clk 0:02:57.6]} 11... Kh8 {[%clk 0:00:58]} 12. Qxd8 {[%clk 0:02:46.5]}
12... Rxd8 {[%clk 0:00:57.1]} 13. Be3 {[%clk 0:02:46.9]} 13... cxd4 {[%clk
0:00:56.6]} 14. cxd4 {[%clk 0:02:46.8]} 14... Nxd4 {[%clk 0:00:56.9]} 15. O-O-O
{[%clk 0:02:47]} 15... Ne6 {[%clk 0:00:36.4]} 16. Bxf5 {[%clk 0:02:32.3]} 16...
Nxf4 {[%clk 0:00:33.4]} 17. Rxd8+ {[%clk 0:02:30.9]} 17... Bxd8 {[%clk
0:00:32.8]} 18. Bxc8 {[%clk 0:02:31.8]} 18... Nxg2 {[%clk 0:00:17.7]} 19. Bxb7
{[%clk 0:02:31.3]} 19... Rb8 {[%clk 0:00:17.3]} 20. Bxg2 {[%clk 0:02:30.9]} 1-0

[Event "Late-Titled-Tuesday-Blitz-June-04-2024"]
[Site "Chess.com"]
[Date "2024.06.04"]
[Round "1"]
[White "Chessdreamer2020"]
[Black "PNEPaul"]
[Result "1-0"]
[WhiteElo "2528"]
[BlackElo "1919"]
[TimeControl "180+1"]
[EndTime "14:04:14 PDT"]
[Termination "Chessdreamer2020 won by resignation"]

1. e4 {[%clk 0:02:58.8]} 1... e5 {[%clk 0:02:59.6]} 2. Nf3 {[%clk 0:02:58.8]}
2... Nc6 {[%clk 0:02:58.7]} 3. Bc4 {[%clk 0:02:58]} 3... Be7 {[%clk 0:02:58.5]}
4. d4 {[%clk 0:02:57.7]} 4... exd4 {[%clk 0:02:57.8]} 5. c3 {[%clk 0:02:58.1]}
5... d6 {[%clk 0:02:57]} 6. cxd4 {[%clk 0:02:57.5]} 6... Nf6 {[%clk 0:02:56.6]}
7. Nc3 {[%clk 0:02:57.6]} 7... O-O {[%clk 0:02:56.4]} 8. O-O {[%clk 0:02:57.1]}
8... Bg4 {[%clk 0:02:53]} 9. Be2 {[%clk 0:02:51.2]} 9... d5 {[%clk 0:02:51.5]}
10. e5 {[%clk 0:02:50.2]} 10... Ne4 {[%clk 0:02:51]} 11. h3 {[%clk 0:02:47.9]}
11... Bh5 {[%clk 0:02:47.6]} 12. Qb3 {[%clk 0:02:46.2]} 12... Nxc3 {[%clk
0:02:43.2]} 13. bxc3 {[%clk 0:02:46]} 13... Rb8 {[%clk 0:02:40.5]} 14. Re1
{[%clk 0:02:27]} 14... Na5 {[%clk 0:02:39.2]} 15. Qa4 {[%clk 0:02:25.5]} 15...
Nc4 {[%clk 0:02:36.8]} 16. Bxc4 {[%clk 0:02:18.6]} 16... Bxf3 {[%clk 0:02:35]}
17. Bd3 {[%clk 0:02:10.2]} 17... Bh5 {[%clk 0:02:34.1]} 18. Qxa7 {[%clk
0:02:09.5]} 18... c6 {[%clk 0:02:20.1]} 19. Qa4 {[%clk 0:02:02.7]} 19... Qd7
{[%clk 0:02:18.3]} 20. Qc2 {[%clk 0:02:01.6]} 20... Bg6 {[%clk 0:02:16.8]} 21.
f4 {[%clk 0:01:59.1]} 21... Bxd3 {[%clk 0:02:14.7]} 22. Qxd3 {[%clk 0:02:00]}
22... Rfd8 {[%clk 0:02:13.1]} 23. f5 {[%clk 0:01:59.7]} 23... Qc8 {[%clk
0:02:08.5]} 24. Rf1 {[%clk 0:01:56.5]} 24... f6 {[%clk 0:02:06.4]} 25. e6 {[%clk
0:01:56.5]} 25... c5 {[%clk 0:02:02.3]} 26. Bf4 {[%clk 0:01:56.4]} 26... Ra8
{[%clk 0:02:01.5]} 27. Rfb1 {[%clk 0:01:56.7]} 27... c4 {[%clk 0:02:00.2]} 28.
Qg3 {[%clk 0:01:55.3]} 28... Ra3 {[%clk 0:01:56.8]} 29. Bc7 {[%clk 0:01:53]}
29... Re8 {[%clk 0:01:55.6]} 30. Rb2 {[%clk 0:01:49.1]} 30... Qa8 {[%clk
0:01:43.1]} 31. Rab1 {[%clk 0:01:46.1]} 31... h6 {[%clk 0:01:39.3]} 32. Rxb7
{[%clk 0:01:45.5]} 32... Rxa2 {[%clk 0:01:38.8]} 33. Rb8 {[%clk 0:01:44.4]}
33... Qa4 {[%clk 0:01:37]} 34. Rxe8+ {[%clk 0:01:43.1]} 34... Qxe8 {[%clk
0:01:36.6]} 35. Rb8 {[%clk 0:01:43.2]} 1-0

[Event "Late-Titled-Tuesday-Blitz-June-04-2024"]
[Site "Chess.com"]
[Date "2024.06.04"]
[Round "1"]
[White "joksijoksi"]
[Black "IlyaGrigorjev"]
[Result "0-1"]
[WhiteElo "2461"]
[BlackElo "2826"]
[TimeControl "180+1"]
[EndTime "14:04:28 PDT"]
[Termination "IlyaGrigorjev won by resignation"]

1. d4 {[%clk 0:02:59.7]} 1... Nf6 {[%clk 0:02:59.9]} 2. c4 {[%clk 0:02:56.3]}
2... g6 {[%clk 0:03:00.1]} 3. Nc3 {[%clk 0:02:55.8]} 3... d5 {[%clk 0:03:00.8]}
4. Nf3 {[%clk 0:02:54.2]} 4... Bg7 {[%clk 0:03:01]} 5. Bg5 {[%clk 0:02:53.9]}
5... Ne4 {[%clk 0:02:59.2]} 6. cxd5 {[%clk 0:02:54]} 6... Nxg5 {[%clk
0:02:59.2]} 7. Nxg5 {[%clk 0:02:54.2]} 7... e6 {[%clk 0:03:00.1]} 8. Nf3 {[%clk
0:02:54.6]} 8... exd5 {[%clk 0:03:00.2]} 9. e3 {[%clk 0:02:55.2]} 9... O-O
{[%clk 0:03:00.9]} 10. Be2 {[%clk 0:02:54.3]} 10... c6 {[%clk 0:03:01.4]} 11.
O-O {[%clk 0:02:54.5]} 11... Nd7 {[%clk 0:03:00.8]} 12. b4 {[%clk 0:02:54.1]}
12... Qe7 {[%clk 0:03:01.2]} 13. Qb3 {[%clk 0:02:52.9]} 13... a6 {[%clk
0:02:58.7]} 14. a4 {[%clk 0:02:52.7]} 14... Nf6 {[%clk 0:02:09]} 15. b5 {[%clk
0:02:50.8]} 15... axb5 {[%clk 0:01:59.9]} 16. axb5 {[%clk 0:02:51.1]} 16... Rxa1
{[%clk 0:02:00.8]} 17. Rxa1 {[%clk 0:02:51.5]} 17... Ne4 {[%clk 0:01:59.5]} 18.
Nxe4 {[%clk 0:02:45]} 18... dxe4 {[%clk 0:01:59.5]} 19. Nd2 {[%clk 0:02:43.2]}
19... c5 {[%clk 0:01:59.6]} 20. Rd1 {[%clk 0:02:11.2]} 20... cxd4 {[%clk
0:01:58.6]} 21. exd4 {[%clk 0:02:10.5]} 21... Bxd4 {[%clk 0:01:56.1]} 22. Nc4
{[%clk 0:01:57.6]} 22... Qc5 {[%clk 0:01:50.1]} 23. Ne3 {[%clk 0:01:53.9]} 23...
Be6 {[%clk 0:01:49.8]} 24. Bc4 {[%clk 0:01:41]} 24... Bxe3 {[%clk 0:01:48.7]}
25. Bxe6 {[%clk 0:01:40.2]} 25... Bxf2+ {[%clk 0:01:49.1]} 26. Kh1 {[%clk
0:01:40.4]} 26... fxe6 {[%clk 0:01:50]} 27. Qxe6+ {[%clk 0:01:40.2]} 27... Kh8
{[%clk 0:01:50.7]} 28. Qxe4 {[%clk 0:01:38.4]} 28... b6 {[%clk 0:01:41.6]} 29.
Qe2 {[%clk 0:01:30.2]} 29... Bd4 {[%clk 0:01:40.7]} 30. Qe4 {[%clk 0:01:29.2]}
30... Bg7 {[%clk 0:01:38.6]} 31. Qb7 {[%clk 0:01:20.4]} 31... Qxb5 {[%clk
0:01:37.6]} 32. h3 {[%clk 0:01:18.6]} 32... Rf1+ {[%clk 0:01:37.4]} 33. Rxf1
{[%clk 0:01:19.1]} 33... Qxf1+ {[%clk 0:01:38.3]} 34. Kh2 {[%clk 0:01:19.9]}
34... Be5+ {[%clk 0:01:38.4]} 0-1

[Event "Late-Titled-Tuesday-Blitz-June-04-2024"]
[Site "Chess.com"]
[Date "2024.06.04"]
[Round "1"]
[White "Navyblue1"]
[Black "Sanyura"]
[Result "0-1"]
[WhiteElo "2217"]
[BlackElo "2562"]
[TimeControl "180+1"]
[EndTime "14:04:56 PDT"]
[Termination "Sanyura won by resignation"]

1. d4 {[%clk 0:02:58.9]} 1... Nf6 {[%clk 0:02:41.9]} 2. c4 {[%clk 0:02:53.7]}
2... g6 {[%clk 0:02:39.1]} 3. Nc3 {[%clk 0:02:48.3]} 3... Bg7 {[%clk 0:02:37]}
4. e4 {[%clk 0:02:45]} 4... d6 {[%clk 0:02:37.2]} 5. h3 {[%clk 0:02:43.4]} 5...
O-O {[%clk 0:02:37.3]} 6. Be3 {[%clk 0:02:36.8]} 6... a6 {[%clk 0:02:34.8]} 7.
Nf3 {[%clk 0:02:33.2]} 7... c6 {[%clk 0:02:35.1]} 8. Be2 {[%clk 0:02:19.6]} 8...
b5 {[%clk 0:02:34.8]} 9. cxb5 {[%clk 0:01:45.6]} 9... axb5 {[%clk 0:02:35.7]}
10. a3 {[%clk 0:01:43.6]} 10... Bb7 {[%clk 0:02:35.1]} 11. O-O {[%clk
0:01:32.8]} 11... Nbd7 {[%clk 0:02:34.8]} 12. Nd2 {[%clk 0:01:16.3]} 12... e5
{[%clk 0:02:33.4]} 13. dxe5 {[%clk 0:01:02.3]} 13... Nxe5 {[%clk 0:02:29.4]} 14.
Nf3 {[%clk 0:00:45.4]} 14... Nc4 {[%clk 0:02:20.1]} 15. Bxc4 {[%clk 0:00:43.3]}
15... bxc4 {[%clk 0:02:21]} 16. e5 {[%clk 0:00:18.2]} 16... Nd5 {[%clk
0:02:20.4]} 17. Nxd5 {[%clk 0:00:16.6]} 17... cxd5 {[%clk 0:02:20.3]} 18. Bd4
{[%clk 0:00:15.9]} 18... Re8 {[%clk 0:02:16.5]} 19. exd6 {[%clk 0:00:15.6]}
19... Qxd6 {[%clk 0:02:17.4]} 20. Bxg7 {[%clk 0:00:15.2]} 20... Kxg7 {[%clk
0:02:18.3]} 21. Qd4+ {[%clk 0:00:15.3]} 21... Qf6 {[%clk 0:02:18.8]} 22. Rfe1
{[%clk 0:00:14.5]} 22... Rab8 {[%clk 0:02:16.7]} 23. Qxf6+ {[%clk 0:00:13.9]}
23... Kxf6 {[%clk 0:02:16.5]} 24. Nd4 {[%clk 0:00:14.4]} 24... Ba8 {[%clk
0:02:13.4]} 25. Rxe8 {[%clk 0:00:13.5]} 25... Rxe8 {[%clk 0:02:14.3]} 26. Kf1
{[%clk 0:00:13.7]} 26... Rb8 {[%clk 0:02:14.3]} 27. Rb1 {[%clk 0:00:12.3]} 27...
Ke5 {[%clk 0:02:14.3]} 28. Nf3+ {[%clk 0:00:11.6]} 28... Kd6 {[%clk 0:02:14.2]}
29. Ke2 {[%clk 0:00:11]} 29... Kc5 {[%clk 0:02:13.7]} 30. Kd2 {[%clk 0:00:10.6]}
30... d4 {[%clk 0:02:13.8]} 31. Kc2 {[%clk 0:00:09.9]} 31... Be4+ {[%clk
0:02:13.6]} 0-1